fUST/lending_fUST_20240112
["ID","MTS","AMOUNT","RATE_DAILY","PERIOD"]
[311364754,1705068638418,-500.0,0.00022739,2]
[311364755,1705068638427,-856.72,0.00022739,2]
[311364756,1705068638437,-500.0,0.00022739,2]
[311364757,1705068638446,-984.16,0.00022739,2]
[311364758,1705068638456,-1516.79,0.00022739,2]
[311364759,1705068638465,-1181.57,0.00022768,2]
[311364760,1705068638474,-515.21,0.00022768,2]
[311364761,1705068638484,-500.0,0.00022768,2]
[311364762,1705068638497,-500.0,0.00022768,2]
[311364763,1705068638506,-500.0,0.00022768,2]
[311364764,1705068638515,-760.35,0.00022768,2]
[311364765,1705068638524,-590.71,0.00022768,2]
[311364766,1705068638533,-647.16293889,0.00022768,2]
[311364767,1705068638542,-500.0,0.00022768,2]
[311364768,1705068638551,-104036.07428931,0.00022913,2]
[311364769,1705068638561,-166.666666,0.00022944,2]
[311364770,1705068638570,-784.33,0.00022999,2]
[311364771,1705068638580,-2093.76186828,0.00023,2]
[311364772,1705068638588,-9924.74397112,0.00023,2]
[311364773,1705068638597,-784.33,0.00023011,2]
[311364775,1705068638607,-1480.14,0.00023011,2]
[311364777,1705068638616,-648.16,0.00023011,2]
[311364779,1705068638625,-1224.69,0.00023011,2]
[311364781,1705068638634,-500.0,0.00023011,2]
[311364783,1705068638644,-500.0,0.00023011,2]
[311364785,1705068638653,-822.93,0.00023011,2]
[311364787,1705068638662,-3196.79,0.00023011,2]
[311364789,1705068638671,-6635.3,0.00023011,2]
[311364791,1705068638680,-3383.51,0.00023011,2]
[311364793,1705068638689,-500.0,0.00023012,2]
[311364795,1705068638698,-500.0,0.00023012,2]
[311364797,1705068638707,-500.0,0.00023012,2]
[311364799,1705068638716,-500.0,0.00023012,2]
[311364801,1705068638725,-500.0,0.00023012,2]
[311364803,1705068638734,-500.0,0.00023012,2]
[311364805,1705068638745,-500.0,0.00023012,2]
[311364807,1705068638754,-500.0,0.00023012,2]
[311364809,1705068638764,-500.0,0.00023012,2]
[311364811,1705068638773,-500.0,0.00023012,2]
[311364813,1705068638782,-500.0,0.00023012,2]
[311364814,1705068638791,-504.88887298,0.00023012,2]
[311364815,1705068638800,-500.0,0.00023012,2]
[311364816,1705068638809,-500.0,0.00023012,2]
[311364818,1705068638817,-500.0,0.00023012,2]
[311364819,1705068638826,-500.0,0.00023012,2]
[311364821,1705068638835,-500.0,0.00023012,2]
[311364823,1705068638844,-1223.56,0.00023012,2]
[311364825,1705068638854,-500.0,0.00023012,2]
[311364827,1705068638866,-500.0,0.00023012,2]
[311364828,1705068638904,-500.0,0.00023012,2]
[311364830,1705068638914,-500.0,0.00023012,2]
[311364831,1705068638923,-727.08,0.00023012,2]
[311364832,1705068638932,-500.0,0.00023012,2]
[311364834,1705068638941,-500.0,0.00023012,2]
[311364836,1705068638951,-502.51546201,0.00023012,2]
[311364838,1705068638959,-467.47072547,0.00023012,2]
[311364840,1705068638969,-500.0,0.00023012,2]
[311364842,1705068638978,-500.0,0.00023012,2]
[311364844,1705068638986,-507.56888381,0.00023012,2]
[311364846,1705068638998,-500.0,0.00023012,2]
[311364847,1705068639007,-500.0,0.00023012,2]
[311364849,1705068639017,-500.0,0.00023012,2]
[311364851,1705068639026,-500.0,0.00023012,2]
[311364853,1705068639035,-1145.62,0.00023012,2]
[311364854,1705068639044,-500.0,0.00023012,2]
[311364855,1705068639053,-500.0,0.00023012,2]
[311364856,1705068639062,-500.0,0.00023012,2]
[311364857,1705068639071,-500.0,0.00023012,2]
[311364858,1705068639080,-500.0,0.00023012,2]
[311364859,1705068639089,-500.0,0.00023013,2]
[311364860,1705068639098,-500.0,0.00023013,2]
[311364861,1705068639107,-500.0,0.00023013,2]
[311364862,1705068639116,-500.0,0.00023013,2]
[311364863,1705068639125,-500.0,0.00023013,2]
[311364864,1705068639134,-500.0,0.00023013,2]
[311364865,1705068639143,-500.0,0.00023013,2]
[311364866,1705068639152,-500.0,0.00023013,2]
[311364867,1705068639161,-515.36,0.00023013,2]
[311364868,1705068639170,-157.30471136,0.00023013,2]
[311364869,1705068639179,-500.0,0.00023013,2]
[311364870,1705068639188,-500.0,0.00023013,2]
[311364871,1705068639198,-500.0,0.00023013,2]
[311364872,1705068639207,-500.0,0.00023013,2]
[311364873,1705068639216,-500.0,0.00023013,2]
[311364874,1705068639225,-500.0,0.00023013,2]
[311364875,1705068639234,-500.0,0.00023013,2]
[311364876,1705068639245,-500.0,0.00023013,2]
[311364877,1705068639253,-500.0,0.00023013,2]
[311364878,1705068639262,-500.0,0.00023013,2]
[311364879,1705068639271,-1156.51,0.00023013,2]
[311364880,1705068639280,-500.0,0.00023013,2]
[311364881,1705068639289,-500.0,0.00023013,2]
[311364882,1705068639298,-3722.52,0.00023013,2]
[311364883,1705068639307,-8597.27,0.00023013,2]
[311364884,1705068639317,-17351.31,0.00023013,2]
[311364885,1705068639326,-500.0,0.00023013,2]
[311364886,1705068639337,-500.0,0.00023013,2]
[311364887,1705068639347,-359.97101555,0.00023013,2]
[311364888,1705068639357,-534.01,0.00023013,2]
[311364889,1705068639366,-500.0,0.00023013,2]
[311364890,1705068639375,-4871.89,0.00023013,2]
[311364891,1705068639384,-500.0,0.00023013,2]
[311364892,1705068639394,-856.72,0.00023013,2]
[311364893,1705068639403,-502.04559348,0.00023013,2]
[311364894,1705068639413,-984.16,0.00023013,2]
[311364895,1705068639422,-1516.79,0.00023013,2]
[311364896,1705068639432,-1181.57,0.00023042,2]
[311364897,1705068639440,-515.21,0.00023042,2]
[311364898,1705068639450,-500.0,0.00023042,2]
[311364899,1705068639459,-500.0,0.00023042,2]
[311364900,1705068639468,-500.0,0.00023042,2]
[311364901,1705068639477,-760.35,0.00023042,2]
[311364902,1705068639487,-590.71,0.00023042,2]
[311364903,1705068639498,-500.0,0.00023042,2]
[311364904,1705068639507,-186.7921399,0.00023064,2]
[311364905,1705068639517,-784.33,0.00023284,2]
[311364906,1705068639526,-1480.14,0.00023285,2]
[311364907,1705068639536,-648.16,0.00023285,2]
[311364908,1705068639545,-1224.69,0.00023285,2]
[311364909,1705068639554,-500.0,0.00023285,2]
[311364910,1705068639564,-500.0,0.00023285,2]
[311364911,1705068639573,-822.93,0.00023285,2]
[311364912,1705068639582,-3196.79,0.00023285,2]
[311364913,1705068639592,-6635.3,0.00023285,2]
[311364914,1705068639601,-3383.51,0.00023285,2]
[311364915,1705068639610,-500.0,0.00023286,2]
[311364916,1705068639619,-500.0,0.00023286,2]
[311364917,1705068639628,-500.0,0.00023286,2]
[311364918,1705068639638,-500.0,0.00023286,2]
[311364919,1705068639647,-500.0,0.00023286,2]
[311364920,1705068639657,-500.0,0.00023286,2]
[311364921,1705068639666,-500.0,0.00023286,2]
[311364922,1705068639675,-500.0,0.00023286,2]
[311364923,1705068639684,-500.0,0.00023286,2]
[311364924,1705068639694,-500.0,0.00023286,2]
[311364925,1705068639703,-500.0,0.00023286,2]
[311364926,1705068639713,-784.33,0.00023286,2]
[311364927,1705068639722,-500.0,0.00023286,2]
[311364928,1705068639815,-500.0,0.00023286,2]
[311364929,1705068639824,-603.30534561,0.00023286,2]
[311364930,1705068639833,-500.0,0.00023286,2]
[311364931,1705068639842,-1223.56,0.00023286,2]
[311364932,1705068639852,-500.0,0.00023286,2]
[311364933,1705068639861,-500.0,0.00023286,2]
[311364934,1705068639870,-500.0,0.00023286,2]
[311364935,1705068639879,-500.0,0.00023286,2]
[311364936,1705068639888,-727.08,0.00023286,2]
[311364937,1705068639898,-500.0,0.00023286,2]
[311364938,1705068639907,-500.0,0.00023286,2]
[311364939,1705068639916,-500.0,0.00023286,2]
[311364940,1705068639925,-500.0,0.00023286,2]
[311364941,1705068639934,-500.0,0.00023286,2]
[311364942,1705068639943,-500.0,0.00023286,2]
[311364943,1705068639953,-500.0,0.00023286,2]
[311364944,1705068639963,-500.0,0.00023286,2]
[311364945,1705068639972,-1145.62,0.00023286,2]
[311364946,1705068639981,-500.0,0.00023286,2]
[311364947,1705068639991,-500.0,0.00023286,2]
[311364948,1705068640000,-500.0,0.00023286,2]
[311364949,1705068640010,-500.0,0.00023286,2]
[311364950,1705068640020,-500.0,0.00023286,2]
[311364951,1705068640029,-500.0,0.00023287,2]
[311364952,1705068640038,-500.0,0.00023287,2]
[311364953,1705068640047,-500.0,0.00023287,2]
[311364954,1705068640056,-500.0,0.00023287,2]
[311364955,1705068640066,-500.0,0.00023287,2]
[311364956,1705068640075,-500.0,0.00023287,2]
[311364957,1705068640085,-515.36,0.00023287,2]
[311364958,1705068640094,-500.0,0.00023287,2]
[311364959,1705068640104,-500.0,0.00023287,2]
[311364960,1705068640114,-500.0,0.00023287,2]
[311364961,1705068640123,-500.0,0.00023287,2]
[311364962,1705068640132,-500.0,0.00023287,2]
[311364963,1705068640142,-500.0,0.00023287,2]
[311364965,1705068640151,-500.0,0.00023287,2]
[311364966,1705068640160,-503.44599568,0.00023287,2]
[311364968,1705068640169,-500.0,0.00023287,2]
[311364970,1705068640178,-500.0,0.00023287,2]
[311364972,1705068640187,-1156.51,0.00023287,2]
[311364974,1705068640196,-500.0,0.00023287,2]
[311364976,1705068640206,-500.0,0.00023287,2]
[311364978,1705068640215,-3722.52,0.00023287,2]
[311364980,1705068640226,-8597.27,0.00023287,2]
[311364982,1705068640235,-17351.31,0.00023287,2]
[311364984,1705068640245,-500.0,0.00023287,2]
[311364985,1705068640254,-500.0,0.00023287,2]
[311364987,1705068640264,-534.01,0.00023287,2]
[311364989,1705068640273,-500.0,0.00023287,2]
[311364992,1705068640282,-4871.89,0.00023287,2]
[311364993,1705068640292,-500.0,0.00023287,2]
[311364996,1705068640301,-856.72,0.00023287,2]
[311364997,1705068640311,-984.16,0.00023287,2]
[311365000,1705068640321,-1516.79,0.00023287,2]
[311365001,1705068640330,-1181.57,0.00023316,2]
[311365003,1705068640339,-515.21,0.00023316,2]
[311365005,1705068640349,-500.0,0.00023316,2]
[311365007,1705068640358,-500.0,0.00023316,2]
[311365009,1705068640367,-500.0,0.00023316,2]
[311365011,1705068640376,-760.35,0.00023316,2]
[311365014,1705068640386,-590.71,0.00023316,2]
[311365016,1705068640395,-500.0,0.00023316,2]
[311365018,1705068640404,-166.666666,0.00023456,2]
[311365020,1705068640413,-186.7921399,0.00023551,2]
[311365022,1705068640423,-353.42747819,0.00023553,2]
[311365024,1705068640431,-784.33,0.00023559,2]
[311365026,1705068640440,-1480.14,0.00023559,2]
[311365029,1705068640450,-648.16,0.00023559,2]
[311365032,1705068640459,-1224.69,0.00023559,2]
[311365034,1705068640468,-500.0,0.00023559,2]
[311365036,1705068640477,-500.0,0.00023559,2]
[311365038,1705068640486,-822.93,0.00023559,2]
[311365040,1705068640497,-3196.79,0.00023559,2]
[311365042,1705068640506,-6635.3,0.00023559,2]
[311365044,1705068640515,-3383.51,0.00023559,2]
[311365046,1705068640524,-253.0,0.0002356,2]
[311365048,1705068640533,-500.0,0.0002356,2]
[311365050,1705068640543,-500.0,0.0002356,2]
[311365052,1705068640552,-189.62135833,0.0002356,2]
[311365055,1705068640563,-500.0,0.0002356,2]
[311365058,1705068640573,-500.0,0.0002356,2]
[311365060,1705068640583,-500.0,0.0002356,2]
[311365062,1705068640593,-500.0,0.0002356,2]
[311365064,1705068640603,-500.0,0.0002356,2]
[311365066,1705068640613,-500.0,0.0002356,2]
[311365068,1705068640638,-500.0,0.0002356,2]
[311365070,1705068640654,-500.0,0.0002356,2]
[311365072,1705068640663,-500.0,0.0002356,2]
[311365074,1705068640672,-500.0,0.0002356,2]
[311365076,1705068640682,-1223.56,0.0002356,2]
[311365078,1705068640692,-500.0,0.0002356,2]
[311365080,1705068640702,-500.0,0.0002356,2]
[311365082,1705068640711,-500.0,0.0002356,2]
[311365084,1705068640721,-500.0,0.0002356,2]
[311365086,1705068640730,-727.08,0.0002356,2]
[311365088,1705068640739,-500.0,0.0002356,2]
[311365090,1705068640750,-500.0,0.0002356,2]
[311365092,1705068640759,-500.0,0.0002356,2]
[311365094,1705068640768,-500.0,0.0002356,2]
[311365097,1705068640778,-515.61042052,0.0002356,2]
[311365098,1705068640787,-500.0,0.0002356,2]
[311365100,1705068640797,-500.0,0.0002356,2]
[311365102,1705068640806,-500.0,0.0002356,2]
[311365104,1705068640816,-1145.62,0.0002356,2]
[311365106,1705068640825,-500.0,0.0002356,2]
[311365108,1705068640834,-500.0,0.0002356,2]
[311365110,1705068640843,-500.0,0.0002356,2]
[311365112,1705068640853,-500.0,0.0002356,2]
[311365113,1705068640862,-500.0,0.0002356,2]
[311365114,1705068640870,-500.0,0.00023561,2]
[311365115,1705068640879,-500.0,0.00023561,2]
[311365116,1705068640888,-500.0,0.00023561,2]
[311365117,1705068640897,-500.0,0.00023561,2]
[311365118,1705068640906,-500.0,0.00023561,2]
[311365119,1705068640916,-515.36,0.00023561,2]
[311365121,1705068640926,-500.0,0.00023561,2]
[311365123,1705068640935,-500.0,0.00023561,2]
[311365126,1705068640946,-500.0,0.00023561,2]
[311365127,1705068640955,-500.0,0.00023561,2]
[311365130,1705068640966,-500.0,0.00023561,2]
[311365131,1705068640975,-500.0,0.00023561,2]
[311365134,1705068640985,-645.29078378,0.00023561,2]
[311365136,1705068640997,-500.0,0.00023561,2]
[311365138,1705068641006,-1156.51,0.00023561,2]
[311365140,1705068641015,-500.0,0.00023561,2]
[311365141,1705068641024,-500.0,0.00023561,2]
[311365143,1705068641033,-3722.52,0.00023561,2]
[311365145,1705068641042,-8597.27,0.00023561,2]
[311365148,1705068641051,-17351.31,0.00023561,2]
[311365149,1705068641060,-500.0,0.00023561,2]
[311365152,1705068641069,-500.0,0.00023561,2]
[311365153,1705068641078,-534.01,0.00023561,2]
[311365155,1705068641088,-500.0,0.00023561,2]
[311365158,1705068641098,-4871.89,0.00023561,2]
[311365159,1705068641107,-500.0,0.00023561,2]
[311365161,1705068641116,-856.72,0.00023561,2]
[311365164,1705068641125,-984.16,0.00023561,2]
[311365166,1705068641135,-1516.79,0.00023561,2]
[311365168,1705068641143,-1181.57,0.0002359,2]
[311365170,1705068641152,-515.21,0.0002359,2]
[311365172,1705068641161,-500.0,0.0002359,2]
[311365174,1705068641170,-509.54407372,0.0002359,2]
[311365176,1705068641179,-500.0,0.0002359,2]
[311365178,1705068641188,-760.35,0.0002359,2]
[311365180,1705068641197,-590.71,0.0002359,2]
[311365182,1705068641206,-784.33,0.00023832,2]
[311365184,1705068641215,-1480.14,0.00023833,2]
[311365185,1705068641224,-648.16,0.00023833,2]
[311365188,1705068641233,-1224.69,0.00023833,2]
[311365190,1705068641243,-500.0,0.00023833,2]
[311365191,1705068641252,-500.0,0.00023833,2]
[311365194,1705068641261,-822.93,0.00023833,2]
[311365195,1705068641271,-3196.79,0.00023833,2]
[311365197,1705068641280,-6635.3,0.00023833,2]
[311365199,1705068641289,-3383.51,0.00023833,2]
[311365201,1705068641298,-500.0,0.00023834,2]
[311365203,1705068641307,-500.0,0.00023834,2]
[311365205,1705068641316,-500.0,0.00023834,2]
[311365208,1705068641328,-500.0,0.00023834,2]
[311365210,1705068641337,-500.0,0.00023834,2]
[311365212,1705068641346,-500.0,0.00023834,2]
[311365214,1705068641356,-500.0,0.00023834,2]
[311365216,1705068641365,-504.98952588,0.00023834,2]
[311365218,1705068641373,-500.0,0.00023834,2]
[311365220,1705068641382,-784.33,0.00023834,2]
[311365221,1705068641391,-500.0,0.00023834,2]
[311365223,1705068641400,-500.0,0.00023834,2]
[311365225,1705068641409,-500.0,0.00023834,2]
[311365227,1705068641418,-1223.56,0.00023834,2]
[311365230,1705068641429,-500.0,0.00023834,2]
[311365231,1705068641438,-575.83249262,0.00023834,2]
[311365233,1705068641447,-727.08,0.00023834,2]
[311365235,1705068641456,-500.0,0.00023834,2]
[311365237,1705068641467,-500.0,0.00023834,2]
[311365240,1705068641476,-500.0,0.00023834,2]
[311365242,1705068641486,-500.0,0.00023834,2]
[311365244,1705068641495,-500.0,0.00023834,2]
[311365246,1705068641504,-500.0,0.00023834,2]
[311365248,1705068641513,-1145.62,0.00023834,2]
[311365250,1705068641523,-500.0,0.00023834,2]
[311365252,1705068641531,-500.0,0.00023834,2]
[311365254,1705068641540,-500.0,0.00023834,2]
[311365256,1705068641550,-500.0,0.00023834,2]
[311365258,1705068641560,-500.0,0.00023834,2]
[311365259,1705068641570,-500.0,0.00023835,2]
[311365261,1705068641579,-500.0,0.00023835,2]
[311365263,1705068641589,-500.0,0.00023835,2]
[311365266,1705068641598,-500.0,0.00023835,2]
[311365268,1705068641608,-515.36,0.00023835,2]
[311365270,1705068641617,-500.0,0.00023835,2]
[311365272,1705068641628,-500.0,0.00023835,2]
[311365274,1705068641639,-500.0,0.00023835,2]
[311365275,1705068641658,-500.0,0.00023835,2]
[311365278,1705068641669,-500.0,0.00023835,2]
[311365280,1705068641678,-1156.51,0.00023835,2]
[311365282,1705068641689,-500.0,0.00023835,2]
[311365284,1705068641699,-500.0,0.00023835,2]
[311365285,1705068641709,-3722.52,0.00023835,2]
[311365288,1705068641720,-8597.27,0.00023835,2]
[311365297,1705068641804,-17351.31,0.00023835,2]
[311365299,1705068641815,-514.22040034,0.00023835,2]
[311365301,1705068641824,-500.0,0.00023835,2]
[311365303,1705068641833,-534.01,0.00023835,2]
[311365305,1705068641844,-500.0,0.00023835,2]
[311365307,1705068641854,-4871.89,0.00023835,2]
[311365309,1705068641863,-856.72,0.00023835,2]
[311365311,1705068641874,-984.16,0.00023835,2]
[311365313,1705068641884,-1516.79,0.00023835,2]
[311365315,1705068641894,-1181.57,0.00023864,2]
[311365317,1705068641905,-515.21,0.00023864,2]
[311365319,1705068641915,-500.0,0.00023864,2]
[311365321,1705068641925,-500.0,0.00023864,2]
[311365323,1705068641935,-760.35,0.00023864,2]
[311365325,1705068641946,-590.71,0.00023864,2]
[311365327,1705068641955,-166.666666,0.00023969,2]
[311365329,1705068641965,-4005.78937176,0.00024,2]
[311365331,1705068641975,-186.7921399,0.00024038,2]
[311365334,1705068641985,-784.33,0.00024107,2]
[311365336,1705068641996,-1480.14,0.00024107,2]
[311365338,1705068642005,-648.16,0.00024107,2]
[311365340,1705068642015,-1224.69,0.00024107,2]
[311365341,1705068642025,-500.0,0.00024107,2]
[311365343,1705068642035,-500.0,0.00024107,2]
[311365346,1705068642045,-822.93,0.00024107,2]
[311365348,1705068642055,-3196.79,0.00024107,2]
[311365349,1705068642065,-6635.3,0.00024107,2]
[311365351,1705068642075,-3383.51,0.00024107,2]
[311365354,1705068642086,-500.0,0.00024108,2]
[311365355,1705068642096,-573.43232172,0.00024108,2]
[311365358,1705068642106,-500.0,0.00024108,2]
[311365359,1705068642116,-500.0,0.00024108,2]
[311365361,1705068642125,-500.0,0.00024108,2]
[311365363,1705068642135,-500.0,0.00024108,2]
[311365365,1705068642146,-500.0,0.00024108,2]
[311365368,1705068642156,-500.0,0.00024108,2]
[311365370,1705068642166,-638.03039341,0.00024108,2]
[311365372,1705068642176,-500.0,0.00024108,2]
[311365374,1705068642187,-500.0,0.00024108,2]
[311365376,1705068642199,-1223.56,0.00024108,2]
[311365378,1705068642208,-500.0,0.00024108,2]
[311365380,1705068642218,-727.08,0.00024108,2]
[311365382,1705068642227,-500.0,0.00024108,2]
[311365384,1705068642237,-500.0,0.00024108,2]
[311365386,1705068642249,-500.0,0.00024108,2]
[311365388,1705068642258,-500.0,0.00024108,2]
[311365390,1705068642269,-1145.62,0.00024108,2]
[311365392,1705068642278,-500.0,0.00024108,2]
[311365394,1705068642287,-500.0,0.00024108,2]
[311365396,1705068642298,-500.0,0.00024108,2]
[311365398,1705068642308,-500.0,0.00024108,2]
[311365400,1705068642317,-500.0,0.00024108,2]
[311365402,1705068642327,-500.0,0.00024109,2]
[311365404,1705068642336,-316.04905805,0.00024109,2]
[311365406,1705068642346,-500.0,0.00024109,2]
[311365408,1705068642356,-500.0,0.00024109,2]
[311365410,1705068642366,-515.36,0.00024109,2]
[311365412,1705068642375,-500.0,0.00024109,2]
[311365414,1705068642385,-500.0,0.00024109,2]
[311365416,1705068642394,-500.0,0.00024109,2]
[311365418,1705068642403,-500.0,0.00024109,2]
[311365420,1705068642412,-1156.51,0.00024109,2]
[311365422,1705068642422,-500.0,0.00024109,2]
[311365424,1705068642431,-500.0,0.00024109,2]
[311365426,1705068642441,-3722.52,0.00024109,2]
[311365428,1705068642450,-8597.27,0.00024109,2]
[311365430,1705068642460,-17351.31,0.00024109,2]
[311365432,1705068642470,-500.0,0.00024109,2]
[311365434,1705068642479,-534.01,0.00024109,2]
[311365436,1705068642489,-500.0,0.00024109,2]
[311365438,1705068642499,-4871.89,0.00024109,2]
[311365440,1705068642508,-856.72,0.00024109,2]
[311365442,1705068642517,-984.16,0.00024109,2]
[311365444,1705068642526,-1516.79,0.00024109,2]
[311365446,1705068642536,-1402.20804,0.00024109,2]
[311365448,1705068642545,-1402.20804,0.00024109,2]
[311365450,1705068642554,-1516.32,0.00024109,2]
[311365452,1705068642563,-1516.32,0.00024109,2]
[311365454,1705068642572,-1181.57,0.00024138,2]
[311365456,1705068642582,-515.21,0.00024138,2]
[311365458,1705068642591,-500.0,0.00024138,2]
[311365460,1705068642600,-500.0,0.00024138,2]
[311365462,1705068642610,-760.35,0.00024138,2]
[311365464,1705068642619,-590.71,0.00024138,2]
[311365466,1705068642628,-784.33,0.0002438,2]
[311365468,1705068642637,-1480.14,0.00024381,2]
[311365470,1705068642646,-648.16,0.00024381,2]
[311365472,1705068642656,-1224.69,0.00024381,2]
[311365474,1705068642665,-500.0,0.00024381,2]
[311365476,1705068642674,-500.0,0.00024381,2]
[311365478,1705068642684,-822.93,0.00024381,2]
[311365480,1705068642693,-3196.79,0.00024381,2]
[311365482,1705068642702,-6635.3,0.00024381,2]
[311365484,1705068642711,-3383.51,0.00024381,2]
[311365486,1705068642720,-151.0,0.00024382,2]
[311365488,1705068642730,-500.0,0.00024382,2]
[311365490,1705068642739,-500.0,0.00024382,2]
[311365492,1705068642748,-500.0,0.00024382,2]
[311365494,1705068642756,-500.0,0.00024382,2]
[311365496,1705068642765,-500.0,0.00024382,2]
[311365497,1705068642775,-500.0,0.00024382,2]
[311365499,1705068642784,-500.0,0.00024382,2]
[311365502,1705068642793,-500.0,0.00024382,2]
[311365503,1705068642802,-1223.56,0.00024382,2]
[311365505,1705068642811,-500.0,0.00024382,2]
[311365507,1705068642820,-727.08,0.00024382,2]
[311365509,1705068642829,-500.0,0.00024382,2]
[311365512,1705068642839,-500.0,0.00024382,2]
[311365514,1705068642848,-623.8853397,0.00024382,2]
[311365515,1705068642857,-1145.62,0.00024382,2]
[311365517,1705068642866,-500.0,0.00024382,2]
[311365520,1705068642875,-500.0,0.00024382,2]
[311365521,1705068642884,-500.0,0.00024382,2]
[311365524,1705068642894,-500.0,0.00024382,2]
[311365526,1705068642904,-500.0,0.00024382,2]
[311365528,1705068642913,-500.0,0.00024383,2]
[311365530,1705068642925,-500.0,0.00024383,2]
[311365531,1705068642934,-515.36,0.00024383,2]
[311365535,1705068642944,-500.0,0.00024383,2]
[311365537,1705068642952,-500.0,0.00024383,2]
[311365540,1705068642962,-500.0,0.00024383,2]
[311365543,1705068642971,-1156.51,0.00024383,2]
[311365545,1705068642980,-500.0,0.00024383,2]
[311365547,1705068642990,-500.0,0.00024383,2]
[311365549,1705068643002,-3722.52,0.00024383,2]
[311365551,1705068643012,-8597.27,0.00024383,2]
[311365553,1705068643021,-17351.31,0.00024383,2]
[311365555,1705068643030,-500.0,0.00024383,2]
[311365557,1705068643039,-534.01,0.00024383,2]
[311365559,1705068643051,-535.59739701,0.00024383,2]
[311365561,1705068643060,-4871.89,0.00024383,2]
[311365563,1705068643069,-856.72,0.00024383,2]
[311365565,1705068643078,-984.16,0.00024383,2]
[311365567,1705068643088,-1516.79,0.00024383,2]
[311365569,1705068643097,-1181.57,0.00024412,2]
[311365571,1705068643106,-515.21,0.00024412,2]
[311365573,1705068643115,-500.0,0.00024412,2]
[311365575,1705068643124,-500.0,0.00024412,2]
[311365577,1705068643133,-760.35,0.00024412,2]
[311365579,1705068643143,-590.71,0.00024412,2]
[311365581,1705068643152,-166.666666,0.00024482,2]
[311365583,1705068643162,-151.0,0.00024534,2]
[311365585,1705068643171,-784.33,0.00024654,2]
[311365587,1705068643181,-1480.14,0.00024655,2]
[311365589,1705068643190,-648.16,0.00024655,2]
[311365591,1705068643199,-1224.69,0.00024655,2]
[311365593,1705068643207,-500.0,0.00024655,2]
[311365595,1705068643216,-510.48923295,0.00024655,2]
[311365597,1705068643225,-822.93,0.00024655,2]
[311365599,1705068643234,-3196.79,0.00024655,2]
[311365601,1705068643245,-6635.3,0.00024655,2]
[311365603,1705068643254,-3383.51,0.00024655,2]
[311365605,1705068643263,-500.0,0.00024656,2]
[311365607,1705068643272,-423.81805998,0.00024656,2]
[311365609,1705068643281,-500.0,0.00024656,2]
[311365611,1705068643290,-450.56,0.00024656,2]
[311365613,1705068643299,-784.33,0.00024656,2]
[311365615,1705068643308,-784.33,0.00024656,2]
[311365617,1705068643317,-784.33,0.00024656,2]
[311365619,1705068643326,-784.33,0.00024656,2]
[311365621,1705068643335,-784.54729767,0.00024656,2]
[311365623,1705068643345,-500.0,0.00024656,2]